bitfinex-derivatives/quotes_ETHF0:USTF0_20251117
["timestamp","ask_amount","ask_price","bid_price","bid_amount"]
[1763390319052,3.2078,3190.8,3189.6,3.2078]
[1763390319255,4.30690832,3191.7,3190.0,3.2078]
[1763390319549,1.09910832,3193.1,3191.3,3.2078]
[1763390319750,3.2078,3193.8,3192.0,3.2078]
[1763390319955,3.2078,3194.3,3192.4,3.2078]
[1763390320151,0.00469829,3192.9,3192.8,0.50788]
[1763390320354,5.12017211,3194.9,3193.2,0.50781]
[1763390320551,1.72364577,3195.3,3193.2,0.50781]
[1763390320552,0.50767,3194.2,3193.3,3.2078]
[1763390321044,0.50779,3193.4,3193.3,0.00277193]
[1763390321243,3.2078,3193.5,3190.4,3.2078]
[1763390321449,3.2078,3191.9,3190.4,3.2078]
[1763390321754,3.2078,3192.4,3190.8,3.2078]
[1763390322055,3.2078,3192.1,3190.8,3.2078]
[1763390322252,3.2078,3191.7,3191.3,0.00469829]
[1763390322449,3.2078,3191.7,3190.8,0.00343888]
[1763390322652,0.00469829,3191.9,3189.4,3.2078]
[1763390322653,3.2078,3190.9,3189.4,3.2078]
[1763390322947,4.13958719,3191.6,3190.1,0.50831]
[1763390322948,3.2078,3191.6,3190.1,0.50831]
[1763390323155,3.2078,3191.2,3190.5,0.50825]
[1763390323349,3.2078,3190.7,3190.3,3.2078]
[1763390323758,3.2078,3190.7,3190.3,0.00348946]
[1763390323960,10.11667097,3190.6,3188.8,3.2078]
[1763390324148,3.2078,3189.5,3188.8,2.27415213]
[1763390324349,3.2078,3189.9,3188.8,2.27415213]
[1763390324654,3.2078,3189.5,3188.8,2.27415213]
[1763390324956,3.2078,3188.9,3187.9,3.2078]
[1763390325254,3.2078,3188.9,3188.3,0.00469829]
[1763390325453,1.1166314,3190.7,3188.7,3.2078]
[1763390325649,1.1166314,3190.7,3188.0,9.26827051]
[1763390325650,0.50834,3190.0,3189.2,3.2078]
[1763390325956,3.2078,3189.9,3188.7,3.2078]
[1763390326358,1.72364577,3190.7,3187.9,3.2078]
[1763390326359,3.2078,3189.0,3187.9,3.2078]
[1763390326663,3.2078,3189.0,3185.5,13.0070365]
[1763390326664,0.5087,3187.7,3187.0,3.2078]
[1763390326960,3.2078,3187.7,3187.0,3.7166]
[1763390327152,3.2078,3187.7,3187.2,0.50877]
[1763390327352,3.2078,3188.3,3187.3,0.50874]
[1763390327554,3.2078,3187.9,3187.0,3.21250588]
[1763390327749,0.00261521,3188.3,3187.7,0.50868]
[1763390327949,3.2078,3187.8,3187.0,0.00818295]
[1763390328253,3.71648,3187.8,3187.0,0.51698295]
[1763390328451,0.00261521,3188.3,3187.1,3.2078]
[1763390328653,0.00261521,3188.3,3187.7,3.2078]
[1763390328855,3.21041521,3188.3,3187.2,3.2078]
[1763390329054,3.2078,3187.9,3187.2,3.2078]
[1763390329454,3.2078,3187.6,3187.0,0.51698295]
[1763390329653,3.21249829,3189.2,3188.7,0.50853]
[1763390329854,3.21249829,3189.2,3188.5,0.50856]
[1763390329855,3.2078,3188.7,3188.5,0.50856]
[1763390330054,3.2078,3188.7,3188.5,0.50857]
[1763390330252,3.2078,3188.7,3188.2,0.00470588]
[1763390330761,0.00469829,3189.2,3188.2,0.00470588]
[1763390330762,0.00469829,3189.2,3188.3,3.2078]
[1763390330962,0.00469829,3189.2,3189.1,0.50847]
[1763390331154,3.2078,3190.1,3189.8,0.50835]
[1763390331356,3.2078,3190.9,3189.4,3.2078]
[1763390331553,3.2078,3190.5,3190.3,0.50828]
[1763390331859,0.69922219,3190.4,3189.0,3.2078]
[1763390332061,3.2078,3189.8,3188.5,3.2078]
[1763390332262,3.21102793,3190.4,3189.4,3.2078]
[1763390332459,0.00322793,3190.4,3190.0,0.50832]
[1763390332665,0.00322793,3190.4,3189.5,40.8]
[1763390332666,0.00322793,3190.4,3190.2,3.71609]
[1763390332961,0.6993216,3190.8,3190.7,0.50822]
[1763390333259,3.2078,3192.8,3190.6,3.2078]
[1763390333454,0.69885116,3192.7,3191.8,3.2078]
[1763390333653,2.28840347,3194.5,3190.9,1.4919]
[1763390333654,1.1166314,3194.1,3192.3,3.2078]
[1763390333961,3.2078,3194.6,3193.2,3.2078]
[1763390334258,1.46e-06,3194.1,3193.9,0.50771]
[1763390334453,0.6968329,3195.5,3194.3,0.50764]
[1763390334656,1.1166314,3196.2,3194.8,3.2078]
[1763390334854,1.11058663,3198.1,3196.1,3.2078]
[1763390335065,0.50714,3197.5,3197.4,3.2078]
[1763390335256,0.50706,3198.0,3197.4,2.56356789]
[1763390335456,0.00261441,3198.0,3197.4,0.00298014]
[1763390335665,0.00261441,3198.0,3196.2,40.8]
[1763390335666,0.50738,3196.0,3195.8,3.2078]
[1763390335862,0.50738,3196.0,3192.6,1.4919]
[1763390335863,0.5075,3195.2,3194.9,3.2078]
[1763390336064,0.50762,3194.5,3193.9,3.2078]
[1763390336262,0.50762,3194.5,3192.6,1.4919]
[1763390336263,0.50762,3194.5,3194.4,3.2078]
[1763390336469,0.50752,3195.1,3194.4,3.2078]
[1763390336656,3.2078,3196.5,3194.8,3.2078]
[1763390336857,11.292,3199.0,3195.6,3.2078]
[1763390336858,0.50739,3195.9,3195.6,3.2078]
[1763390337057,3.2078,3195.9,3194.7,3.2078]
[1763390337252,0.50752,3195.1,3194.3,3.2078]
[1763390337465,0.50759,3194.7,3194.3,3.2078]
[1763390337663,3.2078,3195.2,3194.3,3.71544]
[1763390337865,3.2078,3195.4,3194.7,3.2078]
[1763390338158,0.00313777,3195.2,3194.7,3.2078]
[1763390338358,0.50754,3195.0,3194.7,3.21249719]
[1763390338564,3.2078,3194.8,3194.7,0.00469719]
[1763390338858,3.2078,3195.0,3193.6,0.00224983]
[1763390339061,0.50757,3194.8,3193.7,0.50773]
[1763390339261,0.00313777,3195.2,3194.2,3.2078]
[1763390339466,0.00313777,3195.2,3194.6,3.2078]
[1763390339467,0.50754,3195.0,3194.6,3.2078]
[1763390339667,0.50763,3194.5,3193.8,3.2078]
[1763390339962,3.2078,3194.9,3193.6,0.00224983]
[1763390340260,3.2078,3194.9,3190.9,1.4919]
[1763390340261,0.50777,3193.6,3192.2,3.2078]
[1763390340466,3.2078,3194.2,3192.6,3.2078]
[1763390340766,3.2078,3194.6,3193.9,3.2078]
[1763390340966,3.2078,3196.1,3194.4,3.2078]
[1763390341262,3.2078,3195.1,3194.0,4.06289615]
[1763390341468,0.00469719,3194.7,3194.2,3.2078]
[1763390341858,0.5075,3195.3,3194.2,3.2078]
[1763390342064,3.2078,3195.9,3194.6,3.2078]
[1763390342365,3.2078,3194.9,3193.4,3.2078]
[1763390342566,3.2078,3193.6,3192.8,3.2078]
[1763390342767,3.21125566,3195.3,3192.7,3.2078]
[1763390342977,0.00345566,3195.3,3195.1,0.5075]
[1763390343162,1.3577,3197.7,3194.9,3.2078]
[1763390343465,3.2078,3197.9,3197.0,3.2078]
[1763390343661,0.50713,3197.6,3197.0,3.2078]
[1763390343868,0.50715,3197.5,3197.0,3.2078]
[1763390344068,0.00469719,3197.6,3197.4,3.2078]
[1763390344266,3.2078,3200.1,3197.4,9.2078]
[1763390344467,0.50696,3198.7,3198.5,3.2078]
[1763390344669,3.2078,3199.7,3198.5,3.2078]
[1763390344868,4.01266669,3199.9,3198.7,3.2078]
[1763390345073,3.2078,3198.8,3197.1,0.50719]
[1763390345367,3.2078,3198.3,3197.0,0.0034691]
[1763390345575,3.2078,3198.3,3191.7,2.2964056]
[1763390345576,3.2078,3197.1,3195.9,3.2078]
[1763390345872,3.2078,3196.0,3194.4,3.2078]
[1763390346067,0.50767,3194.2,3194.0,3.2078]
[1763390346266,3.2078,3194.1,3193.5,3.2078]
[1763390346467,3.2078,3194.7,3193.5,3.2078]
[1763390346668,0.00469697,3194.1,3193.1,3.2078]
[1763390346864,0.5078,3193.3,3193.2,0.00387072]
[1763390347064,3.2078,3193.4,3192.0,1.4919]
[1763390347263,0.00469697,3194.1,3191.7,3.2078]
[1763390347264,3.2078,3192.2,3192.1,0.50799]
[1763390347468,3.2078,3193.0,3192.4,0.50793]
[1763390347661,3.2078,3193.0,3192.2,3.2078]
[1763390347862,11.281,3196.1,3191.8,0.50804]
[1763390347863,3.2078,3192.7,3191.8,0.50804]
[1763390348063,4.06808211,3195.3,3191.5,3.2078]
[1763390348064,0.00469697,3192.3,3191.6,0.00469697]
[1763390348269,3.2078,3191.9,3191.6,0.00469697]
[1763390348463,0.50817,3191.0,3190.9,0.00393671]
[1763390348772,3.2078,3191.0,3190.9,0.00393671]
[1763390349770,9.2078,3191.0,3189.3,3.2078]
[1763390349971,3.2078,3189.9,3189.3,3.2078]
[1763390350269,3.2078,3191.2,3191.0,0.50817]
[1763390350468,3.2078,3192.1,3191.3,0.50812]
[1763390350676,3.2078,3192.1,3191.2,3.2078]
[1763390350870,3.2078,3192.1,3191.2,0.00384106]
[1763390350871,3.71588,3191.6,3191.2,0.00384106]
[1763390351065,3.2078,3191.6,3191.2,0.00384106]
[1763390351264,4.684e-05,3192.1,3191.3,9.2078]
[1763390351464,3.2078,3192.8,3192.0,3.2078]
[1763390351670,3.2078,3193.2,3192.4,0.50794]
[1763390351879,3.2078,3193.2,3192.5,3.2078]
[1763390352082,3.2078,3193.7,3192.7,0.50789]
[1763390352373,3.71556,3193.7,3193.0,3.2078]
[1763390352569,0.00469697,3193.5,3193.0,3.2078]
[1763390352775,0.00469697,3193.5,3193.4,3.2078]
[1763390353372,3.2078,3194.5,3192.9,3.21249697]
[1763390353669,0.50785,3193.0,3192.9,0.00469697]
[1763390353874,3.2078,3193.1,3192.0,3.2078]
[1763390354072,3.2078,3192.2,3191.2,0.00384106]
[1763390354575,3.2078,3191.3,3190.2,3.2078]
[1763390354781,0.5082,3190.9,3189.6,3.2078]
[1763390354982,0.50836,3189.9,3189.3,0.00469697]
[1763390355181,3.2078,3189.8,3189.3,0.00469697]
[1763390355476,0.00469697,3190.0,3189.5,0.5084]
[1763390355681,0.00257693,3189.8,3189.3,0.00695472]
[1763390355879,3.2078,3189.5,3189.3,0.00695472]
[1763390356076,0.00257693,3189.8,3189.3,0.00695472]
[1763390356273,0.00469697,3190.0,3189.3,0.00695472]
[1763390356583,3.71622,3189.4,3189.3,0.00695472]
[1763390356787,7.1910774,3189.9,3188.4,0.50857]
[1763390357076,3.2078,3189.2,3188.0,3.2078]
[1763390357280,3.2078,3188.1,3187.5,3.2078]
[1763390357574,3.2078,3188.6,3187.5,3.2078]
[1763390357781,0.00470478,3188.1,3187.5,3.2078]
[1763390357973,0.00470478,3188.1,3187.9,3.71645]
[1763390358171,3.2078,3190.0,3189.9,0.50834]
[1763390358370,3.2078,3190.0,3188.8,3.2078]
[1763390358570,3.71624,3189.3,3188.5,3.2078]
[1763390358773,3.2078,3190.0,3189.0,3.2078]
[1763390358972,3.2078,3190.7,3189.1,0.50847]
[1763390359175,3.2078,3189.7,3188.6,3.2078]
[1763390359483,3.2078,3189.0,3188.2,3.2078]
[1763390359675,3.2078,3189.0,3184.5,11.31578]
[1763390359676,0.50864,3188.1,3187.1,0.50878]
[1763390359980,3.2078,3188.3,3187.6,0.5087]
[1763390360172,11.289,3189.9,3187.6,0.5087]
[1763390360374,3.2078,3188.0,3187.6,0.00309911]
[1763390360688,3.2078,3188.0,3187.8,0.50867]
[1763390361273,3.2078,3188.0,3187.9,6.0]
[1763390361473,0.00470478,3188.1,3188.0,0.50865]
[1763390361688,0.00386497,3189.9,3188.0,9.136]
[1763390361877,3.2078,3191.0,3189.2,3.2078]
[1763390362378,3.2078,3190.3,3190.2,0.5083]
[1763390362573,3.2078,3190.3,3189.3,40.8]
[1763390362574,3.2078,3190.3,3189.3,44.0078]
[1763390362873,2.762,3193.3,3189.3,44.0078]
[1763390362874,4.07952206,3192.7,3191.3,0.50812]
[1763390363078,3.2078,3192.7,3191.2,3.2078]
[1763390363276,3.2078,3192.1,3190.7,3.2078]
[1763390363474,11.292,3193.8,3190.1,1.4359]
[1763390363475,3.2078,3190.8,3190.2,41.30829]
[1763390363681,3.2078,3191.6,3190.3,0.50827]
[1763390363877,3.2078,3191.6,3190.9,3.2078]
[1763390363878,0.00470478,3191.3,3190.9,3.2078]
[1763390364179,0.50788,3192.8,3190.9,3.2078]
[1763390364388,3.2078,3192.8,3191.5,3.2078]
[1763390364885,3.2078,3193.3,3191.9,3.2078]
[1763390365088,3.21250478,3192.9,3192.3,0.00470478]
[1763390365271,0.50794,3192.5,3192.3,0.00470478]
[1763390365579,3.2078,3192.8,3192.3,0.00470478]
[1763390365982,0.50791,3192.7,3192.3,0.00470478]
[1763390366182,0.00470478,3192.9,3192.3,0.00470478]
[1763390366383,0.00470478,3192.9,3192.6,3.71571]
[1763390366582,0.00470478,3192.9,3192.6,3.2078]
[1763390366778,0.00470478,3192.9,3192.3,0.00470478]
[1763390366978,3.2078,3192.5,3191.9,0.00355162]
[1763390367184,0.50813,3191.3,3190.8,3.2078]
[1763390367384,3.2078,3192.0,3190.8,3.2078]
[1763390367579,3.2078,3191.6,3190.2,3.2078]
[1763390367785,3.2078,3191.5,3190.0,0.50832]
[1763390367988,3.2078,3190.6,3189.8,3.2078]
[1763390368192,0.50825,3190.5,3190.4,0.00470478]
[1763390368392,0.50834,3189.9,3189.8,0.00376253]
[1763390368588,3.2078,3189.9,3188.9,3.2078]
[1763390368780,4.08550199,3190.5,3188.9,3.2078]
[1763390368781,3.2078,3189.5,3188.9,3.2078]
[1763390368981,3.2078,3189.6,3188.9,3.2078]
[1763390369186,3.2078,3190.5,3189.4,3.2078]
[1763390369386,0.00278254,3190.6,3188.2,42.2359]
[1763390369387,0.00470478,3190.3,3189.6,0.00470478]
[1763390369582,0.50837,3189.8,3189.6,0.00852994]
[1763390369783,0.50844,3189.4,3188.6,0.50854]
[1763390369988,0.5084,3189.6,3188.8,0.50852]
[1763390370285,3.2078,3189.6,3188.9,3.7163]
[1763390370483,0.00470478,3190.3,3188.9,3.2078]
[1763390370785,0.00470478,3190.3,3189.5,3.2078]
[1763390370989,0.00470478,3190.3,3188.9,0.00237091]
[1763390370990,0.00470478,3190.3,3189.9,3.2078]
[1763390371184,3.2078,3191.1,3190.4,0.50826]
[1763390371394,3.2078,3191.1,3188.9,0.00237091]
[1763390371395,3.2078,3191.1,3190.5,3.2078]
[1763390371595,3.71596,3191.1,3190.5,3.2078]
[1763390371789,3.2078,3191.1,3190.5,3.2078]
[1763390371989,3.2078,3192.1,3190.9,3.2078]
[1763390372280,0.00470478,3191.8,3191.3,3.2078]
[1763390372486,0.50789,3192.8,3191.7,3.2078]
[1763390372685,3.2078,3193.2,3192.1,3.2078]
[1763390372887,3.2078,3192.8,3191.7,3.2078]
[1763390373087,3.2078,3193.5,3192.6,0.50791]
[1763390373283,3.2078,3194.0,3192.7,3.2078]
[1763390373484,0.50774,3193.8,3193.2,0.50781]
[1763390373681,0.00469734,3193.7,3193.5,0.50776]
[1763390373881,0.00469734,3193.7,3193.1,3.2078]
[1763390374080,0.00469734,3193.7,3193.5,3.2078]
[1763390374287,3.2078,3195.3,3194.9,0.50755]
[1763390374496,3.2078,3196.2,3194.9,3.2078]
[1763390374685,1.11058663,3197.0,3194.9,3.2078]
[1763390374887,3.2078,3197.2,3195.3,3.2078]
[1763390375182,3.2078,3197.2,3196.1,3.2078]
[1763390375381,3.2078,3197.2,3193.3,7.53877492]
[1763390375382,3.2078,3197.2,3196.5,3.2078]
[1763390375585,0.50717,3197.3,3196.5,3.2078]
[1763390375791,0.50714,3197.5,3196.6,0.50728]
[1763390375989,0.00358174,3197.2,3196.5,3.2078]
[1763390376192,0.00469734,3196.6,3196.5,3.2078]
[1763390376388,0.00469734,3196.6,3196.3,3.2078]
[1763390377095,0.00358174,3197.2,3197.0,0.50721]
[1763390377295,0.00358174,3197.2,3197.1,3.2078]
[1763390377593,0.50705,3198.1,3197.1,6.335]
[1763390377794,3.2078,3198.1,3197.6,3.2078]
[1763390377998,3.2078,3198.1,3197.2,3.2078]
[1763390378202,0.00468992,3198.0,3197.8,3.71489]
[1763390378492,0.00468992,3198.0,3197.3,0.00468992]
[1763390378493,3.2078,3198.1,3197.3,44.01248992]
[1763390378804,0.50970914,3198.1,3197.4,3.2078]
[1763390378991,0.00265914,3198.1,3197.4,3.2078]
[1763390379191,13.57240347,3200.6,3198.0,3.2078]
[1763390379192,0.50683,3199.5,3198.0,3.2078]
[1763390379497,3.2078,3199.3,3198.1,3.2078]
[1763390379693,0.00468992,3199.1,3198.6,3.2078]
[1763390379900,0.51158992,3199.1,3198.6,3.2078]
[1763390380098,1.64537863,3201.6,3198.6,3.2078]
[1763390380099,1.11058663,3202.2,3200.8,3.2078]
[1763390380297,3.2078,3203.5,3202.1,3.2078]
[1763390380496,0.50639,3202.2,3202.1,3.2078]
[1763390380799,0.50639,3202.2,3200.8,3.21001266]
[1763390380800,0.50653,3201.4,3200.8,3.21001266]
[1763390380998,0.5066,3200.9,3200.8,3.21001266]
[1763390381295,0.00364051,3200.9,3200.8,3.21470258]
[1763390381496,0.00364051,3200.9,3200.8,0.00690258]
[1763390381702,3.21144051,3200.9,3200.8,0.00690258]
[1763390382003,0.00364051,3200.9,3200.8,0.00690258]
[1763390382403,0.50659,3201.0,3200.8,0.00690258]
[1763390382596,3.2078,3200.9,3199.6,3.2078]
[1763390382795,3.2078,3199.7,3198.9,3.2078]
[1763390383099,0.50681,3199.7,3199.3,3.2078]
[1763390383395,3.2078,3200.5,3199.3,3.71465]
[1763390383696,3.2078,3201.7,3200.3,3.2078]
[1763390383894,1.3577,3204.0,3199.3,0.00274502]
[1763390383895,3.2078,3202.1,3201.2,0.50654]
[1763390384100,3.2078,3202.3,3201.2,3.1232]
[1763390384297,1.3577,3204.0,3200.7,0.00468992]
[1763390384298,3.2078,3201.6,3200.7,0.00468992]
[1763390384498,0.50653,3201.4,3200.7,0.00468992]
[1763390384698,0.0036279,3201.4,3201.0,3.2078]
[1763390384897,0.5101479,3201.4,3200.7,0.00468992]
[1763390385198,0.50654,3201.3,3200.7,0.00468992]
[1763390385398,0.50641,3202.1,3201.0,3.2078]
[1763390385600,0.50656,3201.2,3200.7,0.00468992]
[1763390385793,3.2078,3201.7,3200.7,0.00468992]
[1763390385993,0.50661,3200.9,3200.7,0.00468992]
[1763390386199,3.71441,3200.9,3200.7,0.00468992]
[1763390386415,3.71748646,3200.9,3200.7,0.00468992]
[1763390386703,0.50684,3199.4,3199.3,0.00274502]
[1763390386903,0.50672,3200.2,3199.3,0.00274502]
[1763390387099,0.50679,3199.7,3199.6,3.2078]
[1763390387404,0.50683,3199.5,3199.3,0.00274502]
[1763390387795,3.2078,3200.7,3199.4,6.0]
[1763390387998,0.00307646,3200.9,3199.9,3.2078]
[1763390388200,3.2078,3200.8,3199.5,3.2078]
[1763390388400,0.50679,3199.7,3199.3,0.00274502]
[1763390388602,0.50674,3200.1,3199.3,0.50958502]
[1763390388806,0.00307646,3200.9,3200.0,3.2078]
[1763390388993,2.28840347,3205.2,3199.3,0.00274502]
[1763390388994,0.50642,3202.1,3201.3,0.50653]
[1763390389193,3.2078,3202.2,3201.4,0.00468992]
[1763390389601,0.5065,3201.6,3201.4,0.00468992]
[1763390390106,0.51005184,3201.6,3201.4,0.00468992]
[1763390390299,10.05576732,3201.5,3200.1,0.50671]
[1763390390501,0.00355184,3201.6,3200.5,0.50666]
[1763390390696,0.00355184,3201.6,3200.3,3.2078]
[1763390390896,0.5066,3201.0,3200.7,3.2078]
[1763390391106,0.50655,3201.2,3200.7,3.2078]
[1763390391402,0.00468992,3201.3,3200.6,0.00468992]
[1763390391609,0.00468992,3201.3,3200.7,3.2078]
[1763390391810,0.00468992,3201.3,3199.3,0.00274502]
[1763390391811,3.2078,3201.1,3199.3,0.00274502]
[1763390392104,3.2078,3199.5,3198.4,3.2078]
[1763390392405,3.2078,3199.5,3196.9,40.8]
[1763390392406,3.2078,3198.5,3197.8,3.2078]
[1763390392604,3.2078,3198.5,3197.4,0.50715]
[1763390392605,3.2078,3198.4,3197.4,3.2078]
[1763390392806,0.00468992,3198.2,3198.0,0.50704]
[1763390393013,0.00468992,3198.4,3198.3,0.50701]
[1763390393200,1.4489,3202.2,3198.3,0.50701]
[1763390393201,3.2078,3199.4,3198.3,3.2078]
[1763390393403,0.00468992,3199.2,3198.7,3.71473]
[1763390393605,0.00468992,3199.2,3198.3,3.2078]
[1763390394003,0.50691,3199.0,3198.5,0.50697]
[1763390394306,3.2078,3198.8,3198.0,0.00824019]
[1763390394499,0.00304273,3199.0,3198.0,0.00824019]
[1763390394500,0.50703,3198.2,3198.0,0.00824019]
[1763390394698,3.2078,3198.9,3198.0,0.00824019]
[1763390395006,3.2078,3198.5,3198.0,0.00824019]
[1763390395310,3.2078,3198.6,3198.0,0.51529019]
[1763390395514,3.2078,3198.6,3198.0,0.00824019]
[1763390395812,3.2078,3198.1,3198.0,0.00824019]
[1763390396002,3.2078,3198.1,3197.1,3.2078]
[1763390396003,0.50718,3197.3,3197.1,3.2078]
[1763390396611,4.03274087,3198.9,3197.1,3.2078]
[1763390396612,3.2078,3197.8,3197.1,3.2078]
[1763390396807,0.50721,3197.1,3196.6,3.2078]
[1763390397008,3.2078,3197.7,3196.6,3.2078]
[1763390397009,3.2078,3196.8,3196.6,0.00397726]
[1763390397212,0.50724,3196.9,3196.6,0.00397726]
[1763390397414,0.00468992,3197.2,3197.0,0.50721]
[1763390397616,0.00468992,3197.2,3197.0,3.71501]
[1763390397909,3.2078,3198.5,3197.3,0.50716]
[1763390398107,3.2078,3198.5,3197.0,3.2078]
[1763390398108,3.2078,3198.3,3197.4,3.2078]
[1763390398503,3.2078,3197.9,3197.2,0.50717]
[1763390398700,0.50706,3198.0,3197.4,3.2078]
[1763390398904,0.00468992,3198.0,3197.9,3.71487]
[1763390399310,3.2078,3199.2,3198.9,0.50692]
[1763390399618,3.2078,3199.7,3198.9,0.00251278]
[1763390400014,3.2078,3199.7,3198.9,40.80251278]
[1763390400208,9.21084273,3199.0,3196.3,9.121]
[1763390400413,0.00468992,3198.0,3197.3,0.00468992]
[1763390400713,0.00468992,3198.0,3197.8,0.50709]
[1763390400911,0.00468992,3198.0,3197.8,3.1264]
[1763390401108,0.00468992,3198.0,3197.3,40.80468992]
[1763390401109,0.50715,3197.5,3197.3,0.00468992]
[1763390401308,3.2078,3197.4,3196.0,3.2078]
[1763390401512,3.2078,3196.2,3195.7,0.50742]
[1763390401812,3.71507,3196.7,3195.8,3.2078]
[1763390402014,3.2078,3196.7,3195.4,3.2078]
[1763390402206,3.2078,3195.9,3195.4,3.2078]
[1763390402412,0.50741,3195.8,3195.7,0.00468992]
[1763390402709,0.50747,3195.5,3194.2,3.2078]
[1763390402917,0.00362489,3195.9,3195.5,0.50745]
[1763390403104,0.00362489,3195.9,3195.4,3.2078]
[1763390403508,0.00362489,3195.9,3195.8,0.50741]
[1763390403708,0.50744,3195.6,3195.4,0.00220639]
[1763390404107,0.50745,3195.6,3195.4,0.00220639]
[1763390404305,10.15920867,3195.5,3193.9,3.2078]
[1763390404504,3.2078,3194.1,3193.0,3.2078]
[1763390404711,0.50788,3192.9,3192.7,3.2078]
[1763390404916,0.50792,3192.6,3191.6,0.50806]
[1763390405105,3.2078,3193.3,3191.8,3.2078]
[1763390405305,7.32690805,3193.3,3192.3,3.2078]
[1763390405620,0.00343113,3193.3,3193.2,0.50782]
[1763390405810,11.268,3196.4,3193.2,1.381]
[1763390405811,3.2078,3193.8,3193.2,1.381]
[1763390406016,3.2078,3194.1,3193.5,0.50776]
[1763390406216,3.2078,3194.1,3193.2,1.381]
[1763390406418,3.2078,3193.5,3192.8,0.26477001]
[1763390406624,3.2078,3193.1,3190.6,3.2078]
[1763390406914,6.0,3193.4,3191.9,3.2078]
[1763390406915,3.2078,3192.6,3191.9,3.2078]
[1763390407122,0.50783,3193.2,3189.1,0.75940527]
[1763390407123,3.2078,3193.1,3192.4,0.50794]
[1763390407310,3.2078,3193.1,3191.8,3.21029374]
[1763390407517,0.50791,3192.7,3191.8,0.00249374]
[1763390407717,3.2078,3192.4,3191.9,0.00469814]
[1763390407912,3.2078,3193.2,3191.9,3.21249814]
[1763390408118,3.2078,3192.2,3191.9,0.00469814]
[1763390408422,3.2078,3192.2,3190.7,0.50822]
[1763390408617,3.2078,3191.4,3190.6,3.2078]
[1763390408920,0.00397051,3193.5,3189.6,3.2078]
[1763390408921,0.50825,3190.6,3189.6,3.2078]
[1763390409218,3.2078,3189.7,3188.6,3.2078]
[1763390409417,3.2078,3189.3,3189.2,0.003333]
[1763390409716,0.00372004,3189.7,3189.2,0.003333]
[1763390409920,3.2078,3189.4,3189.2,0.003333]
[1763390410119,0.50844,3189.3,3189.2,0.003333]
[1763390410319,4.09029329,3189.6,3189.2,3.3e-05]
[1763390410320,7.29809329,3189.6,3189.2,3.3e-05]
[1763390410520,3.2078,3190.6,3189.6,1.381]
[1763390410719,3.2078,3191.1,3190.3,3.2078]
[1763390410920,3.2078,3191.1,3190.5,0.50825]
[1763390411120,3.2078,3191.1,3190.3,3.2078]
[1763390411522,3.2078,3191.6,3191.4,0.50809]
[1763390411819,3.21109317,3191.6,3190.4,0.00469814]
[1763390412021,3.2078,3190.5,3190.4,0.00469814]
[1763390412217,0.00329317,3191.6,3190.4,0.00469814]
[1763390412418,3.2078,3191.4,3190.4,0.00469814]
[1763390412618,3.2078,3190.8,3190.4,0.00469814]
[1763390412820,0.00329317,3191.6,3190.4,0.00469814]
[1763390412821,0.00329317,3191.6,3191.1,0.50814]
[1763390413009,3.2078,3191.2,3190.4,0.00469814]
[1763390413213,3.2078,3191.1,3190.4,0.00469814]
[1763390413414,3.2078,3191.1,3190.9,0.50817]
[1763390413615,0.00329317,3191.6,3190.4,0.00469814]
[1763390413616,3.2078,3191.5,3190.7,3.2078]
[1763390413826,3.2078,3191.5,3191.4,0.50811]
[1763390414017,0.00469814,3191.8,3191.7,0.50806]
[1763390414319,0.00469814,3191.8,3191.5,0.50808]
[1763390414519,0.00469814,3191.8,3191.2,3.2078]
[1763390414520,3.71587,3191.7,3191.2,3.2078]
[1763390414815,3.2078,3191.7,3190.8,3.2078]
[1763390415015,0.5081,3191.5,3190.8,0.00350139]
[1763390415218,3.2078,3191.3,3190.8,0.00350139]
[1763390415729,0.00302032,3191.7,3191.0,0.50816]
[1763390416020,3.21082032,3191.7,3191.3,0.50811]
[1763390416218,0.00302032,3191.7,3191.5,0.50808]
[1763390416425,3.2078,3193.0,3192.8,0.50787]
[1763390416614,3.2078,3193.0,3192.6,0.50791]
[1763390416809,3.2078,3193.0,3192.8,0.50787]
[1763390417324,0.00469814,3193.2,3192.9,6.0]
[1763390417522,0.50771,3194.0,3193.1,3.2078]
[1763390417723,3.2078,3193.7,3192.6,1.3863]
[1763390417912,3.2078,3193.3,3192.7,0.50789]
[1763390418223,63.77811405,3197.6,3194.0,0.50768]
[1763390418224,3.2078,3194.2,3194.0,0.50768]
[1763390418420,3.21120422,3194.2,3194.0,0.00350375]
[1763390418727,3.21120422,3194.2,3194.0,0.51118375]
[1763390418918,3.21120422,3194.2,3192.8,40.8]
[1763390418919,0.50777,3193.6,3192.8,40.8]
[1763390419112,0.50781,3193.3,3192.6,1.3863]
[1763390419316,3.2078,3193.7,3192.8,3.2078]
[1763390419317,3.2078,3193.6,3192.8,3.2078]
[1763390419514,0.50786,3193.0,3192.8,3.2078]
[1763390419720,3.2078,3193.2,3191.8,3.2078]
[1763390419928,3.2078,3192.0,3191.4,3.7159]
[1763390420126,3.2078,3192.0,3191.4,0.00469814]
[1763390420426,3.2078,3192.2,3191.4,0.00469814]
[1763390420740,3.2078,3192.2,3191.9,0.50802]
[1763390420915,0.00469814,3192.8,3192.7,0.5079]
[1763390421322,0.00469814,3192.8,3192.6,1.3863]
[1763390421517,0.00469814,3192.8,3191.9,0.00294197]
[1763390421722,0.00469814,3192.8,3192.6,0.50791]
[1763390421925,0.00469814,3192.8,3191.9,0.00294197]
[1763390422121,3.2078,3192.5,3191.9,0.00294197]
[1763390422324,0.50801,3192.1,3191.9,0.00294197]
[1763390422526,3.2078,3192.5,3191.9,0.00294197]
[1763390422830,0.00469814,3192.8,3191.9,0.00294197]
[1763390423125,3.2078,3193.5,3192.6,1.4877]
[1763390423532,3.2078,3193.1,3192.6,1.4877]
[1763390424019,0.50801,3192.0,3190.4,3.2078]
[1763390424220,0.50806,3191.7,3191.1,0.51284814]